fUST/lending_fUST_20241115
["ID","MTS","AMOUNT","RATE_DAILY","PERIOD"]
[342241250,1731627042255,-1000.0,0.00016438,2]
[342241251,1731627042265,-465.33575362,0.00016438,2]
[342241252,1731627042275,-500.0,0.00016438,2]
[342241253,1731627042285,-500.0,0.00016438,2]
[342241254,1731627042295,-2886.95,0.00016438,2]
[342241255,1731627042304,-500.0,0.00016438,2]
[342241256,1731627042313,-500.0,0.00016438,2]
[342241257,1731627042327,-500.0,0.00016438,2]
[342241258,1731627042337,-500.0,0.00016438,2]
[342241259,1731627042346,-500.0,0.00016438,2]
[342241260,1731627042355,-1959.96,0.00016438,2]
[342241261,1731627042365,-516.91700438,0.00016438,2]
[342241263,1731627042375,-2216.27,0.00016438,2]
[342241264,1731627042384,-500.0,0.00016438,2]
[342241265,1731627042393,-500.0,0.00016438,2]
[342241266,1731627042403,-500.0,0.00016438,2]
[342241267,1731627042412,-2194.46,0.00016438,2]
[342241268,1731627042422,-500.0,0.00016438,2]
[342241269,1731627042432,-788.99,0.00016438,2]
[342241270,1731627042441,-2329.11,0.00016438,2]
[342241271,1731627042450,-500.0,0.00016438,2]
[342241272,1731627042460,-500.0,0.00016438,2]
[342241273,1731627042470,-500.0,0.00016438,2]
[342241275,1731627042480,-500.0,0.00016438,2]
[342241277,1731627042489,-500.0,0.00016438,2]
[342241279,1731627042499,-782.74,0.00016438,2]
[342241281,1731627042508,-500.0,0.00016438,2]
[342241283,1731627042518,-500.0,0.00016438,2]
[342241284,1731627042527,-500.0,0.00016438,2]
[342241289,1731627042672,-500.0,0.00016438,2]
[342241290,1731627042683,-793.34,0.00016438,2]
[342241291,1731627042692,-569.11,0.00016438,2]
[342241292,1731627042702,-552.67,0.00016438,2]
[342241293,1731627042711,-500.0,0.00016438,2]
[342241294,1731627042720,-500.0,0.00016438,2]
[342241295,1731627042729,-1162.57,0.00016438,2]
[342241296,1731627042739,-500.0,0.00016438,2]
[342241297,1731627042751,-833.66,0.00016438,2]
[342241298,1731627042761,-503.12537179,0.00016438,2]
[342241299,1731627042770,-3376.02,0.00016438,2]
[342241301,1731627042780,-1119.43,0.00016438,2]
[342241303,1731627042790,-520.95,0.00016438,2]
[342241304,1731627042800,-1756.86,0.00016438,2]
[342241305,1731627042810,-1828.75,0.00016438,2]
[342241306,1731627042825,-500.0,0.00016438,2]
[342241307,1731627042835,-500.0,0.00016438,2]
[342241308,1731627042845,-500.0,0.00016438,2]
[342241309,1731627042855,-1216.4,0.00016438,2]
[342241310,1731627042864,-500.0,0.00016438,2]
[342241311,1731627042873,-761.41,0.00016438,2]
[342241312,1731627042883,-500.0,0.00016438,2]
[342241313,1731627042893,-500.0,0.00016438,2]
[342241314,1731627042903,-500.0,0.00016438,2]
[342241315,1731627042913,-500.0,0.00016438,2]
[342241316,1731627042922,-4997.83,0.00016438,2]
[342241317,1731627042932,-500.0,0.00016438,2]
[342241318,1731627042941,-500.0,0.00016438,2]
[342241319,1731627042951,-1121.14,0.00016438,2]
[342241320,1731627042961,-517.12882854,0.00016438,2]
[342241321,1731627042970,-500.0,0.00016438,2]
[342241322,1731627042980,-500.0,0.00016438,2]
[342241323,1731627042990,-500.0,0.00016438,2]
[342241324,1731627042999,-500.0,0.00016438,2]
[342241325,1731627043008,-500.0,0.00016438,2]
[342241326,1731627043018,-500.0,0.00016438,2]
[342241327,1731627043027,-500.0,0.00016438,2]
[342241328,1731627043037,-506.92795942,0.00016438,2]
[342241329,1731627043046,-355.95935528,0.00016438,2]
[342241330,1731627043210,-144.04064472,0.00016438,2]
[342241331,1731627043220,-257.30148527,0.00016438,2]
[342241332,1731627043232,-242.69851473,0.00016438,2]
[342241333,1731627043242,-85.71259206,0.00016438,2]
[342241334,1731627043254,-680.96740794,0.00016438,2]
[342241335,1731627043264,-1133.03269206,0.00016438,2]
[342241336,1731627043277,-306.316,0.00016438,2]
[342241337,1731627043290,-1000.0,0.00016438,2]
[342241338,1731627043535,-1527.5,0.00016438,2]
[342241339,1731627043547,-3481.2,0.00016438,2]
[342241340,1731627043558,-1986.26130794,0.00016438,2]
[342241341,1731627043570,-5540.64,0.00016438,2]
[342241342,1731627043582,-500.0,0.00016438,2]
[342241343,1731627043592,-500.0,0.00016438,2]
[342241344,1731627043601,-500.0,0.00016438,2]
[342241345,1731627043611,-508.47140266,0.00016438,2]
[342241346,1731627043620,-93.13371907,0.00016438,2]
[342241347,1731627043633,-678.38628093,0.00016438,2]
[342241348,1731627043642,-285.23139031,0.00016438,2]
[342241349,1731627043651,-334.49388832,0.00016438,2]
[342241350,1731627043661,-500.0,0.00016438,2]
[342241351,1731627043671,-585.55,0.00016438,2]
[342241352,1731627043681,-500.0,0.00016438,2]
[342241353,1731627043690,-1149.48,0.00016438,2]
[342241354,1731627043700,-500.0,0.00016438,2]
[342241355,1731627043709,-2540.0,0.00016438,2]
[342241356,1731627043719,-563.690183,0.00016438,2]
[342241357,1731627043729,-732.78,0.00016438,2]
[342241358,1731627043739,-500.0,0.00016438,2]
[342241359,1731627043753,-803.53,0.00016438,2]
[342241360,1731627043762,-851.96,0.00016438,2]
[342241361,1731627043771,-500.0,0.00016438,2]
[342241362,1731627043780,-241.15549041,0.00016438,2]
[342241394,1731627045908,-258.84450959,0.00016438,2]
[342241395,1731627045918,-351.15549041,0.00016438,2]
[342241396,1731627045929,-369.12450959,0.00016438,2]
[342241397,1731627045941,-130.87549041,0.00016438,2]
[342241398,1731627046535,655.22,0.00010959,2]
[342241399,1731627259569,800.0,0.00027,60]
[342241400,1731627287415,168.14,0.00011,2]
[342241404,1731627965116,160.137,0.00011,2]
[342241407,1731627987653,500.0,0.00027,60]
[342241408,1731627995973,500.0,0.00027,60]
[342241409,1731628004300,500.0,0.00027,60]
[342241410,1731628012531,500.0,0.00027,60]
[342241411,1731628020281,500.0,0.00027,60]
[342241412,1731628029637,500.0,0.00027,60]
[342241413,1731628036844,500.0,0.00027,60]
[342241414,1731628043511,500.0,0.00027,60]
[342241415,1731628050381,500.0,0.00027,60]
[342241416,1731628059101,500.0,0.00027,60]
[342241417,1731628066221,500.0,0.00027,60]
[342241419,1731628075694,500.0,0.00027,60]
[342241441,1731628084690,500.0,0.00027,60]
[342241463,1731628093026,500.0,0.00027,60]
[342241465,1731628101995,500.0,0.00027,60]
[342241466,1731628113432,500.0,0.00027,60]
[342241470,1731628141003,307.650873,0.00027,60]
[342241501,1731628232024,-160.147,0.000131,2]
[342241503,1731628232033,-400.0,0.00013973,2]
[342241505,1731628232043,-895.56943624,0.00014702,2]
[342241507,1731628232055,-639.91415796,0.00014702,2]
[342241509,1731628232065,-1000.0,0.00015059,2]
[342241511,1731628232074,-421.5856672,0.0001506,2]
[342241513,1731628232084,-67.546424,0.000152,2]
[342241515,1731628232096,-92.631576,0.000152,2]
[342241517,1731628232105,-300.0,0.00015266,2]
[342241519,1731628232116,-300.0,0.00015266,2]
[342241521,1731628232132,-347.434451,0.00015267,2]
[342241576,1731628238110,-8607.89026565,0.00015267,2]
[342241577,1731628238123,-15944.67528335,0.00015267,2]
[342241578,1731628238135,-201.57267244,0.00015293,2]
[342241579,1731628238144,-1000.0,0.00015393,2]
[342241580,1731628238153,-183.7367219,0.00015394,2]
[342241581,1731628238164,-2256.89529727,0.0001628,2]
[342241582,1731628238177,-4914.35230359,0.0001628,2]
[342241583,1731628238186,-744.65990598,0.00016338,2]
[342241584,1731628238195,-150.0,0.00016351,2]
[342241585,1731628238206,-530.0,0.00016351,2]
[342241586,1731628238215,-1113.0,0.00016351,2]
[342241587,1731628238225,-2387.0,0.00016351,2]
[342241588,1731628238393,-1945.98795973,0.00016397,2]
[342241589,1731628238405,-150.0,0.000164,2]
[342241590,1731628238414,-495.88706557,0.00016437,2]
[342241591,1731628238424,-152.76211509,0.00016437,2]
[342241592,1731628238433,-285.26089765,0.00016437,2]
[342241593,1731628238443,-500.0,0.00016438,2]
[342241594,1731628238452,-500.0,0.00016438,2]
[342241595,1731628238463,-500.0,0.00016438,2]
[342241596,1731628238473,-808.36,0.00016438,2]
[342241597,1731628238483,-500.0,0.00016438,2]
[342241598,1731628238492,-500.0,0.00016438,2]
[342241599,1731628238505,-421.07828109,0.00016438,2]
[342241600,1731628238515,-158.08429576,0.00016438,2]
[342241601,1731628238524,-500.0,0.00016438,2]
[342241602,1731628238534,-664.27,0.00016438,2]
[342241603,1731628238544,-500.0,0.00016438,2]
[342241604,1731628238553,-500.0,0.00016438,2]
[342241605,1731628238563,-500.0,0.00016438,2]
[342241606,1731628238573,-500.0,0.00016438,2]
[342241607,1731628238582,-500.0,0.00016438,2]
[342241608,1731628238592,-586.09,0.00016438,2]
[342241609,1731628238601,-500.0,0.00016438,2]
[342241610,1731628238610,-500.0,0.00016438,2]
[342241611,1731628238620,-500.0,0.00016438,2]
[342241612,1731628238629,-500.0,0.00016438,2]
[342241613,1731628238639,-500.0,0.00016438,2]
[342241614,1731628238648,-500.0,0.00016438,2]
[342241615,1731628238658,-500.0,0.00016438,2]
[342241616,1731628238668,-601.8447548,0.00016438,2]
[342241617,1731628238677,-500.0,0.00016438,2]
[342241618,1731628238686,-500.0,0.00016438,2]
[342241619,1731628238696,-500.0,0.00016438,2]
[342241620,1731628238705,-500.0,0.00016438,2]
[342241621,1731628238715,-500.0,0.00016438,2]
[342241622,1731628238725,-500.0,0.00016438,2]
[342241623,1731628238734,-500.0,0.00016438,2]
[342241624,1731628238744,-1000.0,0.00016438,2]
[342241625,1731628238758,-500.0,0.00016438,2]
[342241626,1731628238768,-503.22648254,0.00016438,2]
[342241627,1731628238777,-573.26826106,0.00016438,2]
[342241628,1731628238787,-500.0,0.00016438,2]
[342241629,1731628238796,-500.0,0.00016438,2]
[342241630,1731628238806,-484.04163114,0.00016438,2]
[342241631,1731628238815,-460.24427839,0.00016438,2]
[342241632,1731628238825,-500.0,0.00016438,2]
[342241633,1731628238834,-500.0,0.00016438,2]
[342241634,1731628238844,-681.15,0.00016438,2]
[342241635,1731628238853,-151.0,0.00016438,2]
[342241636,1731628238863,-759.48,0.00016438,2]
[342241637,1731628238873,-500.0,0.00016438,2]
[342241638,1731628238882,-500.0,0.00016438,2]
[342241639,1731628238893,-609.97,0.00016438,2]
[342241640,1731628238903,-529.65,0.00016438,2]
[342241641,1731628238912,-500.0,0.00016438,2]
[342241642,1731628238922,-500.0,0.00016438,2]
[342241643,1731628238931,-685.3,0.00016438,2]
[342241644,1731628238941,-691.44,0.00016438,2]
[342241645,1731628238951,-500.0,0.00016438,2]
[342241646,1731628238961,-500.0,0.00016438,2]
[342241647,1731628238972,-500.0,0.00016438,2]
[342241648,1731628238981,-500.0,0.00016438,2]
[342241649,1731628238990,-500.0,0.00016438,2]
[342241650,1731628238999,-642.42,0.00016438,2]
[342241651,1731628239016,-500.0,0.00016438,2]
[342241652,1731628239031,-240.722,0.00016438,2]
[342241653,1731628239041,-500.0,0.00016438,2]
[342241654,1731628239051,-500.0,0.00016438,2]
[342241655,1731628239061,-500.0,0.00016438,2]
[342241656,1731628239070,-709.76,0.00016438,2]
[342241657,1731628239080,-500.0,0.00016438,2]
[342241658,1731628239090,-500.0,0.00016438,2]
[342241659,1731628239100,-500.0,0.00016438,2]
[342241660,1731628239110,-151.0,0.00016438,2]
[342241661,1731628239120,-702.25,0.00016438,2]
[342241662,1731628239136,-500.0,0.00016438,2]
[342241663,1731628239156,-624.0313498,0.00016438,2]
[342241664,1731628239169,-500.0,0.00016438,2]
[342241665,1731628239181,-500.0,0.00016438,2]
[342241666,1731628239193,-151.0,0.00016438,2]
[342241667,1731628239207,-500.0,0.00016438,2]
[342241668,1731628239218,-181.47,0.00016438,2]
[342241669,1731628239230,-151.763322,0.00016438,2]
[342241670,1731628239247,-944.49,0.00016438,2]
[342241671,1731628239263,-500.0,0.00016438,2]
[342241672,1731628239273,-500.0,0.00016438,2]
[342241673,1731628239283,-500.0,0.00016438,2]
[342241674,1731628239293,-500.0,0.00016438,2]
[342241675,1731628239303,-698.58,0.00016438,2]
[342241676,1731628239313,-500.0,0.00016438,2]
[342241677,1731628239322,-151.0,0.00016438,2]
[342241678,1731628239332,-500.0,0.00016438,2]
[342241679,1731628239342,-500.0,0.00016438,2]
[342241680,1731628239352,-172.001351,0.00016438,2]
[342241681,1731628239362,-172.001351,0.00016438,2]
[342241682,1731628239372,-500.0,0.00016438,2]
[342241683,1731628239381,-500.0,0.00016438,2]
[342241684,1731628239391,-172.001351,0.00016438,2]
[342241685,1731628239401,-172.001351,0.00016438,2]
[342241686,1731628239411,-500.0,0.00016438,2]
[342241687,1731628239421,-500.0,0.00016438,2]
[342241688,1731628239432,-541.16,0.00016438,2]
[342241689,1731628239442,-500.0,0.00016438,2]
[342241691,1731628239452,-600.45148863,0.00016438,2]
[342241693,1731628239462,-500.0,0.00016438,2]
[342241695,1731628239472,-500.0,0.00016438,2]
[342241696,1731628239482,-500.0,0.00016438,2]
[342241698,1731628239492,-500.0,0.00016438,2]
[342241699,1731628239502,-701.44,0.00016438,2]
[342241700,1731628239516,-500.0,0.00016438,2]
[342241702,1731628239526,-226.94508697,0.00016438,2]
[342241704,1731628239536,-500.0,0.00016438,2]
[342241706,1731628239546,-500.0,0.00016438,2]
[342241708,1731628239556,-500.0,0.00016438,2]
[342241709,1731628239567,-500.0,0.00016438,2]
[342241711,1731628239577,-649.64,0.00016438,2]
[342241713,1731628239587,-623.26,0.00016438,2]
[342241714,1731628239598,-151.0,0.00016438,2]
[342241715,1731628239607,-500.0,0.00016438,2]
[342241716,1731628239617,-500.0,0.00016438,2]
[342241717,1731628239627,-1065.06,0.00016438,2]
[342241718,1731628239636,-500.0,0.00016438,2]
[342241719,1731628239645,-500.0,0.00016438,2]
[342241720,1731628239655,-2783.13,0.00016438,2]
[342241721,1731628239665,-500.0,0.00016438,2]
[342241722,1731628239674,-931.24,0.00016438,2]
[342241723,1731628239684,-500.0,0.00016438,2]
[342241724,1731628239694,-500.0,0.00016438,2]
[342241725,1731628239704,-500.0,0.00016438,2]
[342241726,1731628239714,-255.78117144,0.00016438,2]
[342241727,1731628239723,-796.77,0.00016438,2]
[342241728,1731628239733,-500.0,0.00016438,2]
[342241730,1731628239743,-500.0,0.00016438,2]
[342241731,1731628239753,-1338.59,0.00016438,2]
[342241732,1731628239765,-500.0,0.00016438,2]
[342241733,1731628239775,-500.0,0.00016438,2]
[342241734,1731628239785,-500.0,0.00016438,2]
[342241735,1731628239795,-500.0,0.00016438,2]
[342241736,1731628239805,-500.0,0.00016438,2]
[342241737,1731628239814,-151.0,0.00016438,2]
[342241738,1731628239823,-500.0,0.00016438,2]
[342241739,1731628239833,-1837.32,0.00016438,2]
[342241740,1731628239843,-1575.77,0.00016438,2]
[342241741,1731628239852,-500.0,0.00016438,2]
[342241742,1731628239862,-500.0,0.00016438,2]
[342241743,1731628239871,-500.0,0.00016438,2]
[342241744,1731628239881,-500.0,0.00016438,2]
[342241745,1731628239890,-503.23389901,0.00016438,2]
[342241746,1731628239899,-2766.67,0.00016438,2]
[342241747,1731628239909,-500.0,0.00016438,2]
[342241748,1731628239918,-724.42,0.00016438,2]
[342241749,1731628239928,-500.0,0.00016438,2]
[342241750,1731628239938,-7952.01,0.00016438,2]
[342241751,1731628239950,-151.0,0.00016438,2]
[342241752,1731628239960,-151.0,0.00016438,2]
[342241753,1731628239970,-151.0,0.00016438,2]
[342241754,1731628239979,-151.0,0.00016438,2]
[342241755,1731628239989,-500.0,0.00016438,2]
[342241756,1731628239999,-500.0,0.00016438,2]
[342241757,1731628240014,-500.0,0.00016438,2]
[342241758,1731628240026,-1878.29,0.00016438,2]
[342241759,1731628240035,-500.0,0.00016438,2]
[342241760,1731628240045,-150.49262231,0.00016438,2]
[342241761,1731628240054,-500.0,0.00016438,2]
[342241762,1731628240064,-714.16,0.00016438,2]
[342241763,1731628240073,-500.0,0.00016438,2]
[342241764,1731628240083,-502.94346829,0.00016438,2]
[342241765,1731628240094,-672.69,0.00016438,2]
[342241766,1731628240104,-756.11,0.00016438,2]
[342241767,1731628240113,-500.0,0.00016438,2]
[342241769,1731628240124,-2103.03,0.00016438,2]
[342241770,1731628240139,-200.0,0.00016438,2]
[342241772,1731628240153,-500.0,0.00016438,2]
[342241774,1731628240163,-151.0,0.00016438,2]
[342241776,1731628240173,-2123.93,0.00016438,2]
[342241777,1731628240185,-151.0,0.00016438,2]
[342241778,1731628240195,-500.0,0.00016438,2]
[342241780,1731628240205,-500.0,0.00016438,2]
[342241782,1731628240215,-750.13,0.00016438,2]
[342241783,1731628240225,-500.0,0.00016438,2]
[342241785,1731628240235,-500.0,0.00016438,2]
[342241787,1731628240244,-500.0,0.00016438,2]
[342241788,1731628240255,-500.0,0.00016438,2]
[342241789,1731628240273,-2232.06,0.00016438,2]
[342241790,1731628240283,-61.37195473,0.00016438,2]
[342241791,1731628240300,-438.62804527,0.00016438,2]
[342241792,1731628240310,-500.0,0.00016438,2]
[342241793,1731628240319,-500.0,0.00016438,2]
[342241794,1731628240329,-1072.79,0.00016438,2]
[342241795,1731628240339,-500.0,0.00016438,2]
[342241796,1731628240348,-264.6983624,0.00016438,2]
[342241797,1731628240550,-541.71089178,0.00016352,2]
[342241798,1731628240562,-103.26776498,0.00016352,2]
[342241799,1731628240572,-235.3016376,0.00016438,2]
[342241800,1731628240581,-151.0,0.00016438,2]
[342241801,1731628240591,-151.0,0.00016438,2]
[342241802,1731628240600,-798.92,0.00016438,2]
[342241803,1731628240610,-328.51029742,0.00016438,2]
[342241804,1731628240622,-2016.33430756,0.00016438,2]
[342241805,1731628240635,-890.50539502,0.00016438,2]
[342241806,1731628240644,-500.0,0.00016438,2]
[342241807,1731628240653,-527.81550254,0.00016438,2]
[342241808,1731628240663,-500.0,0.00016438,2]
[342241809,1731628240672,-500.0,0.00016438,2]
[342241810,1731628240681,-760.28,0.00016438,2]
[342241811,1731628240690,-500.0,0.00016438,2]
[342241812,1731628240700,-1752.55,0.00016438,2]
[342241813,1731628240709,-4789.59,0.00016438,2]
[342241814,1731628240719,-500.0,0.00016438,2]
[342241815,1731628240729,-501.81820838,0.00016438,2]
[342241816,1731628240738,-1114.13,0.00016438,2]
[342241817,1731628240747,-729.68,0.00016438,2]
[342241818,1731628240757,-500.0,0.00016438,2]
[342241819,1731628240766,-500.0,0.00016438,2]
[342241820,1731628240776,-500.0,0.00016438,2]
[342241821,1731628240786,-1683.66,0.00016438,2]
[342241822,1731628240795,-1101.58,0.00016438,2]
[342241823,1731628240804,-500.0,0.00016438,2]
[342241824,1731628240813,-500.0,0.00016438,2]
[342241825,1731628240822,-500.0,0.00016438,2]
[342241826,1731628240832,-1165.71,0.00016438,2]
[342241827,1731628240842,-1074.43,0.00016438,2]
[342241828,1731628240852,-622.7,0.00016438,2]
[342241829,1731628240861,-500.0,0.00016438,2]
[342241830,1731628240870,-561.16,0.00016438,2]
[342241831,1731628240879,-5309.78,0.00016438,2]
[342241832,1731628240889,-816.46,0.00016438,2]
[342241833,1731628240899,-724.59,0.00016438,2]
[342241834,1731628240908,-500.0,0.00016438,2]
[342241835,1731628240917,-500.0,0.00016438,2]
[342241836,1731628240927,-500.0,0.00016438,2]
[342241837,1731628240937,-500.0,0.00016438,2]
[342241838,1731628240947,-500.0,0.00016438,2]
[342241839,1731628240958,-500.0,0.00016438,2]
[342241840,1731628240967,-9041.21,0.00016438,2]
[342241841,1731628240978,-739.37,0.00016438,2]
[342241842,1731628240987,-734.74,0.00016438,2]
[342241843,1731628240999,-500.0,0.00016438,2]
[342241844,1731628241011,-2434.17,0.00016438,2]
[342241845,1731628241020,-500.0,0.00016438,2]
[342241846,1731628241029,-500.0,0.00016438,2]
[342241847,1731628241038,-500.0,0.00016438,2]
[342241848,1731628241047,-500.0,0.00016438,2]
[342241849,1731628241057,-500.0,0.00016438,2]
[342241850,1731628241066,-500.0,0.00016438,2]
[342241851,1731628241075,-500.0,0.00016438,2]
[342241852,1731628241084,-876.27,0.00016438,2]
[342241853,1731628241093,-500.0,0.00016438,2]
[342241854,1731628241102,-500.0,0.00016438,2]
[342241855,1731628241111,-500.0,0.00016438,2]
[342241856,1731628241121,-503.38310471,0.00016438,2]
[342241857,1731628241131,-551.03858356,0.00016438,2]
[342241858,1731628241143,-770.05,0.00016438,2]
[342241859,1731628241153,-500.0,0.00016438,2]
[342241860,1731628241162,-500.0,0.00016438,2]
[342241861,1731628241171,-500.0,0.00016438,2]
[342241862,1731628241181,-690.27,0.00016438,2]
[342241863,1731628241191,-151.0,0.00016438,2]
[342241864,1731628241200,-151.0,0.00016438,2]
[342241865,1731628241210,-1105.63,0.00016438,2]
[342241866,1731628241220,-1110.18,0.00016438,2]
[342241867,1731628241230,-858.12,0.00016438,2]
[342241868,1731628241240,-27510.46456576,0.00016438,2]
[342241883,1731628243021,-4245.20543424,0.00016438,2]
[342241884,1731628243031,-500.0,0.00016438,2]
[342241885,1731628243041,-664.59,0.00016438,2]
[342241886,1731628243050,-500.0,0.00016438,2]
[342241887,1731628243060,-500.0,0.00016438,2]
[342241888,1731628243070,-151.0,0.00016438,2]
[342241889,1731628243079,-151.0,0.00016438,2]
[342241890,1731628243088,-576.68,0.00016438,2]
[342241891,1731628243097,-3325.31868174,0.00016438,2]
[342241892,1731628243109,-1166.02131826,0.00016438,2]
[342241893,1731628243118,-500.0,0.00016438,2]
[342241894,1731628243127,-500.0,0.00016438,2]
[342241895,1731628243141,-432.36814768,0.00016438,2]
[342241896,1731628243150,-500.0,0.00016438,2]
[342241897,1731628243160,-500.0,0.00016438,2]
[342241898,1731628243170,-3349.49053406,0.00016438,2]
[342241899,1731628243182,-4691.17772072,0.00016438,2]
[342241900,1731628243193,-2300.0,0.00016438,2]
[342241928,1731628246302,-339.71266514,0.00016438,2]
[342241929,1731628246314,-581.16554434,0.00016438,2]
[342241930,1731628376900,409.6843667,0.00027,60]
[342241936,1731628573430,151.751,0.00011,2]
[342241941,1731628705809,254.164,0.00027,60]
[342241945,1731628833204,512.89013564,0.00027,60]
[342241947,1731629218869,151.718,0.00027,60]
[342241981,1731629432110,-400.0,0.00013973,2]
[342241984,1731629432129,-250.0,0.00014741,2]
[342241987,1731629432140,-300.0,0.00014761,2]
[342241989,1731629432149,-300.0,0.00014761,2]
[342241991,1731629432159,-7142.19161391,0.00014762,2]
[342241992,1731629432206,-316.09929999,0.00014762,2]
[342241993,1731629432217,-17441.7090861,0.00014762,2]
[342241994,1731629432444,-409.583884,0.0001483,2]
[342241995,1731629432454,-409.583884,0.00015515,2]
[342241996,1731629432463,-162.213846,0.00015574,2]
[342241997,1731629432472,-162.213846,0.00015651,2]
[342241998,1731629432482,-465.00133636,0.00016067,2]
[342241999,1731629432491,-420.0,0.00016159,2]
[342242000,1731629432502,-409.583884,0.000162,2]
[342242001,1731629432512,-420.0,0.00016237,2]
[342242002,1731629432523,-123.20127486,0.00016277,2]
[342242029,1731629443159,-4345.01313232,0.00016277,2]
[342242030,1731629443212,-2703.03319368,0.00016277,2]
[342242031,1731629443222,-150.0,0.00016351,2]
[342242032,1731629443231,-150.0,0.00016351,2]
[342242033,1731629443240,-150.0,0.00016351,2]
[342242034,1731629443250,-150.0,0.00016351,2]
[342242035,1731629443259,-150.0,0.00016351,2]
[342242036,1731629443268,-150.0,0.00016351,2]
[342242037,1731629443277,-530.0,0.00016351,2]
[342242038,1731629443286,-2387.0,0.00016351,2]
[342242039,1731629443296,-1113.0,0.00016351,2]
[342242040,1731629443306,-429.98577117,0.00016352,2]
[342242041,1731629443319,-151.689,0.0001636,2]
[342242042,1731629443329,-150.0,0.000164,2]
[342242043,1731629443338,-303.92901175,0.00016437,2]
[342242044,1731629443347,-500.0,0.00016437,2]
[342242045,1731629443356,-554.25344721,0.00016437,2]
[342242046,1731629443365,-500.0,0.00016437,2]
[342242047,1731629443375,-272.76827097,0.00016437,2]
[342242048,1731629443384,-347.1209459,0.00016437,2]
[342242049,1731629443393,-192.578,0.00016437,2]
[342242050,1731629443402,-151.0,0.00016438,2]
[342242051,1731629443412,-500.0,0.00016438,2]
[342242052,1731629443421,-193.42937321,0.00016438,2]
[342242053,1731629443430,-500.0,0.00016438,2]
[342242054,1731629443439,-500.0,0.00016438,2]
[342242055,1731629443449,-500.0,0.00016438,2]
[342242056,1731629443458,-518.34112927,0.00016438,2]
[342242057,1731629443467,-278.11810971,0.00016438,2]
[342242058,1731629443476,-31.47046785,0.00016438,2]
[342242073,1731629521996,152.078,0.0002619,60]
[342242080,1731630128739,152.04,0.00027,60]
[342242084,1731630515893,374.0,0.00027,60]
[342242147,1731630633981,-400.0,0.00013973,2]
[342242148,1731630633993,-3000.0,0.00015111,2]
[342242149,1731630634003,-200.0769301,0.00015278,2]
[342242150,1731630634013,-300.0,0.00015395,2]
[342242151,1731630634022,-300.0,0.00015395,2]
[342242152,1731630634032,-1639.27988538,0.00015396,2]
[342242153,1731630634047,-683.61474948,0.00015396,2]
[342242154,1731630634058,-22577.10536514,0.00015396,2]
[342242155,1731630634068,-6626.88063486,0.00016338,2]
[342242158,1731630638890,-722.84886231,0.00016338,2]
[342242159,1731630638900,-150.0,0.00016351,2]
[342242160,1731630638914,-530.0,0.00016351,2]
[342242161,1731630638923,-2387.0,0.00016351,2]
[342242162,1731630638933,-1113.0,0.00016351,2]
[342242163,1731630638942,-152.031,0.0001636,2]